[Event "FIDE Grand Swiss 2023"]
[Site "Villa Marina, Douglas, Isle of Man, Isle Of Man"]
[Date "2023.10.26"]
[Round "2.17"]
[White "Sadhwani, Raunak"]
[Black "Nakamura, Hikaru"]
[Result "1/2-1/2"]
[TimeControl "40/90 + 30 + 30s/move"]
[WhiteFideId "35093487"]
[BlackFideId "2016192"]
[WhiteElo "2641"]
[BlackElo "2780"]

1. e4 {[%clk 01:40:57]} {[%emt 00:00:03]} c5 {[%clk 01:40:54]} {[%emt
00:00:07]} 2. c3 {[%clk 01:41:21]} {[%emt 00:00:06]} d5 {[%clk 01:38:29]}
{[%emt 00:02:55]} 3. exd5 {[%clk 01:41:41]} {[%emt 00:00:10]} Qxd5 {[%clk
01:38:54]} {[%emt 00:00:05]} 4. d4 {[%clk 01:42:06]} {[%emt 00:00:05]} g6
{[%clk 01:39:22]} {[%emt 00:00:02]} 5. Nf3 {[%clk 01:38:07]} {[%emt 00:04:29]}
Bg7 {[%clk 01:39:33]} {[%emt 00:00:19]} 6. Na3 {[%clk 01:32:29]} {[%emt
00:06:08]} cxd4 {[%clk 01:39:12]} {[%emt 00:00:51]} 7. Nb5 {[%clk 01:32:15]}
{[%emt 00:00:43]} Na6 {[%clk 01:39:36]} {[%emt 00:00:06]} 8. Be3 {[%clk
01:23:18]} {[%emt 00:09:27]} Nf6 {[%clk 01:37:56]} {[%emt 00:02:11]} 9. Qxd4
{[%clk 01:18:25]} {[%emt 00:05:22]} O-O {[%clk 01:38:01]} {[%emt 00:00:25]} 10.
Be2 {[%clk 01:01:07]} {[%emt 00:17:48]} b6 {[%clk 01:38:06]} {[%emt 00:00:25]}
11. O-O {[%clk 00:53:06]} {[%emt 00:08:30]} Bb7 {[%clk 01:22:58]} {[%emt
00:15:39]} 12. Qh4 {[%clk 00:49:06]} {[%emt 00:04:30]} Qc6 {[%clk 01:22:28]}
{[%emt 00:01:00]} 13. Nbd4 {[%clk 00:46:31]} {[%emt 00:03:05]} Qc8 {[%clk
01:22:20]} {[%emt 00:00:37]} 14. Bh6 {[%clk 00:45:32]} {[%emt 00:01:30]} Nc5
{[%clk 01:20:51]} {[%emt 00:01:58]} 15. Rfe1 {[%clk 00:44:03]} {[%emt
00:01:59]} a6 {[%clk 01:09:01]} {[%emt 00:12:21]} 16. Ne5 {[%clk 00:40:14]}
{[%emt 00:04:19]} b5 {[%clk 01:03:25]} {[%emt 00:06:06]} 17. Bf3 {[%clk
00:39:47]} {[%emt 00:00:57]} Bxf3 {[%clk 00:57:46]} {[%emt 00:06:09]} 18. Ndxf3
{[%clk 00:37:55]} {[%emt 00:02:21]} Ne6 {[%clk 00:57:55]} {[%emt 00:00:21]} 19.
h3 {[%clk 00:32:14]} {[%emt 00:06:11]} Rb8 {[%clk 00:49:57]} {[%emt 00:08:29]}
20. Re2 {[%clk 00:28:08]} {[%emt 00:04:36]} Rb7 {[%clk 00:41:15]} {[%emt
00:09:12]} 21. Rae1 {[%clk 00:27:59]} {[%emt 00:00:39]} Rb6 {[%clk 00:33:33]}
{[%emt 00:08:13]} 22. Re3 {[%clk 00:16:25]} {[%emt 00:12:03]} Rd6 {[%clk
00:30:04]} {[%emt 00:03:59]} 23. R3e2 {[%clk 00:13:02]} {[%emt 00:03:53]} Rb6
{[%clk 00:19:29]} {[%emt 00:11:05]} 24. Re3 {[%clk 00:13:13]} {[%emt 00:00:19]}
Rd6 {[%clk 00:18:39]} {[%emt 00:01:20]} 25. R3e2 {[%clk 00:13:36]} {[%emt
00:00:07]} Rb6 {[%emt 00:01:47]} 1/2-1/2

[Event "FIDE Grand Swiss 2023"]
[Site "Villa Marina, Douglas, Isle of Man, Isle Of Man"]
[Date "2023.10.26"]
[Round "2.18"]
[White "Firouzja, Alireza"]
[Black "Mamedov, Rauf"]
[Result "1-0"]
[TimeControl "40/90 + 30 + 30s/move"]
[WhiteFideId "12573981"]
[BlackFideId "13401653"]
[WhiteElo "2777"]
[BlackElo "2640"]

1. c4 {[%clk 01:40:58]} {[%emt 00:00:01]} c5 {[%clk 01:40:44]} {[%emt
00:00:17]} 2. Nf3 {[%clk 01:41:17]} {[%emt 00:00:10]} g6 {[%clk 01:41:09]}
{[%emt 00:00:05]} 3. e4 {[%clk 01:41:35]} {[%emt 00:00:12]} Nc6 {[%clk
01:41:35]} {[%emt 00:00:05]} 4. d4 {[%clk 01:41:59]} {[%emt 00:00:05]} cxd4
{[%clk 01:42:02]} {[%emt 00:00:04]} 5. Nxd4 {[%clk 01:42:24]} {[%emt 00:00:05]}
Nf6 {[%clk 01:42:29]} {[%emt 00:00:03]} 6. Nc3 {[%clk 01:42:46]} {[%emt
00:00:08]} Nxd4 {[%clk 01:42:55]} {[%emt 00:00:05]} 7. Qxd4 {[%clk 01:43:10]}
{[%emt 00:00:05]} d6 {[%clk 01:43:22]} {[%emt 00:00:03]} 8. Be2 {[%clk
01:43:05]} {[%emt 00:00:35]} Bg7 {[%clk 01:43:48]} {[%emt 00:00:05]} 9. O-O
{[%clk 01:43:25]} {[%emt 00:00:09]} O-O {[%clk 01:44:11]} {[%emt 00:00:06]} 10.
Qd3 {[%clk 01:43:51]} {[%emt 00:00:05]} a6 {[%clk 01:44:29]} {[%emt 00:00:13]}
11. Bg5 {[%clk 01:41:47]} {[%emt 00:02:34]} Be6 {[%clk 01:37:05]} {[%emt
00:07:53]} 12. b3 {[%clk 01:40:00]} {[%emt 00:02:17]} Nd7 {[%clk 01:26:15]}
{[%emt 00:11:20]} 13. Qe3 {[%clk 01:31:31]} {[%emt 00:08:58]} Re8 {[%clk
01:12:04]} {[%emt 00:14:41]} 14. Rac1 {[%clk 01:23:12]} {[%emt 00:08:50]} Qa5
{[%clk 01:11:59]} {[%emt 00:00:35]} 15. Kh1 {[%clk 01:17:22]} {[%emt 00:06:19]}
f6 {[%clk 00:27:38]} {[%emt 00:44:52]} 16. Bh4 {[%clk 01:15:45]} {[%emt
00:02:07]} Rac8 {[%clk 00:26:58]} {[%emt 00:01:10]} 17. f4 {[%clk 01:14:35]}
{[%emt 00:01:40]} Bh6 {[%clk 00:26:22]} {[%emt 00:01:06]} 18. Nd5 {[%clk
01:11:29]} {[%emt 00:03:36]} Bxd5 {[%clk 00:17:22]} {[%emt 00:09:30]} 19. exd5
{[%clk 01:07:13]} {[%emt 00:04:46]} Nf8 {[%clk 00:17:42]} {[%emt 00:00:10]} 20.
Qc3 {[%clk 00:54:39]} {[%emt 00:13:04]} Qxc3 {[%clk 00:17:22]} {[%emt
00:00:50]} 21. Rxc3 {[%clk 00:55:04]} {[%emt 00:00:04]} Nd7 {[%clk 00:14:13]}
{[%emt 00:03:39]} 22. Re3 {[%clk 00:52:11]} {[%emt 00:03:23]} a5 {[%clk
00:12:57]} {[%emt 00:01:47]} 23. Be1 {[%clk 00:48:55]} {[%emt 00:03:46]} a4
{[%clk 00:10:10]} {[%emt 00:03:18]} 24. bxa4 {[%clk 00:44:37]} {[%emt
00:04:46]} Ra8 {[%clk 00:03:22]} {[%emt 00:07:19]} 25. a5 {[%clk 00:37:26]}
{[%emt 00:07:41]} Bf8 {[%clk 00:03:19]} {[%emt 00:00:33]} 26. Bb4 {[%clk
00:36:03]} {[%emt 00:01:53]} Rec8 {[%clk 00:03:23]} {[%emt 00:00:27]} 27. a3
{[%clk 00:36:11]} {[%emt 00:00:22]} b6 {[%clk 00:03:49]} {[%emt 00:00:04]} 28.
axb6 {[%clk 00:35:33]} {[%emt 00:01:07]} Nxb6 {[%clk 00:03:42]} {[%emt
00:00:37]} 29. Rc3 {[%clk 00:34:59]} {[%emt 00:01:04]} f5 {[%clk 00:04:02]}
{[%emt 00:00:10]} 30. Rd1 {[%clk 00:31:11]} {[%emt 00:04:18]} Na4 {[%clk
00:03:32]} {[%emt 00:01:01]} 31. Rc2 {[%clk 00:29:50]} {[%emt 00:01:50]} h5
{[%clk 00:03:57]} {[%emt 00:00:05]} 32. h3 {[%clk 00:23:59]} {[%emt 00:06:21]}
h4 {[%clk 00:02:45]} {[%emt 00:01:42]} 33. Be1 {[%clk 00:24:08]} {[%emt
00:00:21]} Nc5 {[%clk 00:03:11]} {[%emt 00:00:04]} 34. Bxh4 {[%clk 00:23:11]}
{[%emt 00:01:28]} Rxa3 {[%clk 00:03:38]} {[%emt 00:00:03]} 35. Bf3 {[%clk
00:18:39]} {[%emt 00:05:01]} Kf7 {[%clk 00:03:58]} {[%emt 00:00:10]} 36. Re1
{[%clk 00:10:42]} {[%emt 00:08:27]} Rc7 {[%clk 00:03:51]} {[%emt 00:00:37]} 37.
Bg5 {[%clk 00:10:12]} {[%emt 00:00:59]} Bg7 {[%clk 00:03:34]} {[%emt 00:00:48]}
38. Kh2 {[%clk 00:07:14]} {[%emt 00:03:27]} Bf6 {[%clk 00:02:07]} {[%emt
00:01:57]} 39. h4 {[%clk 00:05:32]} {[%emt 00:02:13]} Nd3 {[%clk 00:01:48]}
{[%emt 00:00:49]} 40. Re6 {[%clk 00:02:37]} {[%emt 00:03:25]} Nc5 {[%clk
00:00:50]} {[%emt 00:01:27]} 41. Bxf6 {[%clk 00:48:53]} {[%emt 00:04:15]} Rxf3
{[%clk 00:45:13]} {[%emt 00:06:07]} 42. Rxe7+ {[%clk 00:43:11]} {[%emt
00:06:12]} Rxe7 {[%clk 00:45:26]} {[%emt 00:00:17]} 43. Bxe7 {[%clk 00:43:38]}
{[%emt 00:00:03]} Rxf4 {[%clk 00:45:53]} {[%emt 00:00:03]} 44. g3 {[%clk
00:43:21]} {[%emt 00:00:47]} Rd4 {[%clk 00:45:36]} {[%emt 00:00:46]} 45. Bxd6
{[%clk 00:43:43]} {[%emt 00:00:08]} Nd7 {[%clk 00:46:03]} {[%emt 00:00:03]} 46.
Bc7 {[%clk 00:41:37]} {[%emt 00:02:36]} Nf6 {[%clk 00:45:42]} {[%emt 00:00:52]}
47. Bf4 {[%clk 00:40:21]} {[%emt 00:01:45]} Ng4+ {[%clk 00:45:40]} {[%emt
00:00:32]} 48. Kh3 {[%clk 00:39:51]} {[%emt 00:01:00]} Re4 {[%clk 00:45:46]}
{[%emt 00:00:24]} 1-0

[Event "FIDE Grand Swiss 2023"]
[Site "Villa Marina, Douglas, Isle of Man, Isle Of Man"]
[Date "2023.10.26"]
[Round "2.19"]
[White "Svane, Rasmus"]
[Black "Giri, Anish"]
[Result "0-1"]
[TimeControl "40/90 + 30 + 30s/move"]
[WhiteFideId "4657101"]
[BlackFideId "24116068"]
[WhiteElo "2646"]
[BlackElo "2760"]

1. d4 {[%clk 01:40:56]} {[%emt 00:00:03]} Nf6 {[%clk 01:40:55]} {[%emt
00:00:05]} 2. c4 {[%clk 01:41:10]} {[%emt 00:00:17]} e6 {[%clk 01:41:19]}
{[%emt 00:00:05]} 3. Nf3 {[%clk 01:41:26]} {[%emt 00:00:14]} b6 {[%clk
01:41:37]} {[%emt 00:00:12]} 4. g3 {[%clk 01:40:59]} {[%emt 00:00:58]} Ba6
{[%clk 01:42:02]} {[%emt 00:00:05]} 5. b3 {[%clk 01:36:31]} {[%emt 00:04:57]}
Bb4+ {[%clk 01:42:11]} {[%emt 00:00:21]} 6. Bd2 {[%clk 01:36:37]} {[%emt
00:00:24]} Be7 {[%clk 01:42:35]} {[%emt 00:00:06]} 7. Bg2 {[%clk 01:34:44]}
{[%emt 00:02:23]} O-O {[%clk 01:42:46]} {[%emt 00:00:20]} 8. O-O {[%clk
01:29:47]} {[%emt 00:05:27]} d5 {[%clk 01:42:53]} {[%emt 00:00:23]} 9. cxd5
{[%clk 01:29:22]} {[%emt 00:00:56]} exd5 {[%clk 01:43:15]} {[%emt 00:00:07]} 10.
Nc3 {[%clk 01:29:33]} {[%emt 00:00:19]} Nbd7 {[%clk 01:42:26]} {[%emt
00:01:18]} 11. Ne5 {[%clk 01:14:48]} {[%emt 00:15:15]} Bb7 {[%clk 01:42:28]}
{[%emt 00:00:28]} 12. Bf4 {[%clk 01:00:14]} {[%emt 00:15:05]} Re8 {[%clk
01:20:47]} {[%emt 00:22:11]} 13. Rc1 {[%clk 00:46:49]} {[%emt 00:13:55]} Nf8
{[%clk 01:17:24]} {[%emt 00:03:53]} 14. Nb5 {[%clk 00:33:47]} {[%emt 00:13:32]}
c5 {[%clk 00:52:25]} {[%emt 00:25:29]} 15. dxc5 {[%clk 00:30:21]} {[%emt
00:03:57]} bxc5 {[%clk 00:52:13]} {[%emt 00:00:41]} 16. Nc4 {[%clk 00:25:28]}
{[%emt 00:05:23]} Ne6 {[%clk 00:48:54]} {[%emt 00:03:49]} 17. Be5 {[%clk
00:24:12]} {[%emt 00:01:46]} Ng4 {[%clk 00:45:18]} {[%emt 00:04:06]} 18. Ncd6
{[%clk 00:10:09]} {[%emt 00:14:34]} Bc6 {[%clk 00:42:49]} {[%emt 00:02:58]} 19.
Nxe8 {[%clk 00:08:58]} {[%emt 00:01:41]} Nxe5 {[%clk 00:40:42]} {[%emt
00:02:37]} 20. Nec7 {[%clk 00:03:43]} {[%emt 00:05:44]} Nxc7 {[%clk 00:41:00]}
{[%emt 00:00:13]} 21. Nxc7 {[%clk 00:03:27]} {[%emt 00:00:46]} Qxc7 {[%clk
00:41:25]} {[%emt 00:00:05]} 22. Bxd5 {[%clk 00:03:34]} {[%emt 00:00:23]} Rd8
{[%clk 00:40:46]} {[%emt 00:01:09]} 23. e4 {[%clk 00:04:00]} {[%emt 00:00:04]}
Bb5 {[%clk 00:38:08]} {[%emt 00:03:08]} 24. f4 {[%clk 00:01:13]} {[%emt
00:03:18]} Bxf1 {[%clk 00:37:53]} {[%emt 00:00:44]} 25. fxe5 {[%clk 00:00:47]}
{[%emt 00:00:56]} Bb5 {[%clk 00:31:53]} {[%emt 00:06:30]} 26. Qh5 {[%clk
00:00:41]} {[%emt 00:00:36]} g6 {[%clk 00:31:34]} {[%emt 00:00:48]} 27. Bxf7+
{[%clk 00:00:38]} {[%emt 00:00:34]} Kg7 {[%clk 00:31:57]} {[%emt 00:00:07]} 0-1

[Event "FIDE Grand Swiss 2023"]
[Site "Villa Marina, Douglas, Isle of Man, Isle Of Man"]
[Date "2023.10.26"]
[Round "2.20"]
[White "Gukesh, D"]
[Black "Ponomariov, Ruslan"]
[Result "1/2-1/2"]
[TimeControl "40/90 + 30 + 30s/move"]
[WhiteFideId "46616543"]
[BlackFideId "14103320"]
[WhiteElo "2758"]
[BlackElo "2641"]

1. e4 {[%clk 01:40:52]} {[%emt 00:00:06]} e5 {[%clk 01:40:50]} {[%emt
00:00:10]} 2. Nf3 {[%clk 01:41:14]} {[%emt 00:00:08]} Nc6 {[%clk 01:41:12]}
{[%emt 00:00:08]} 3. Bc4 {[%clk 01:41:25]} {[%emt 00:00:20]} Nf6 {[%clk
01:41:22]} {[%emt 00:00:19]} 4. d3 {[%clk 01:41:37]} {[%emt 00:00:19]} h6
{[%clk 01:41:30]} {[%emt 00:00:21]} 5. c3 {[%clk 01:33:53]} {[%emt 00:08:14]}
d6 {[%clk 01:40:33]} {[%emt 00:01:27]} 6. O-O {[%clk 01:33:48]} {[%emt
00:00:35]} g6 {[%clk 01:38:07]} {[%emt 00:02:56]} 7. a4 {[%clk 01:30:09]}
{[%emt 00:04:10]} Bg7 {[%clk 01:37:30]} {[%emt 00:01:06]} 8. a5 {[%clk
01:23:19]} {[%emt 00:07:21]} a6 {[%clk 01:36:37]} {[%emt 00:01:22]} 9. Nbd2
{[%clk 01:23:20]} {[%emt 00:00:30]} O-O {[%clk 01:36:47]} {[%emt 00:00:20]} 10.
Re1 {[%clk 01:23:42]} {[%emt 00:00:07]} Rb8 {[%emt 00:29:48]} 11. b4 {[%clk
01:04:51]} Re8 {[%clk 01:16:29]} {[%emt 00:10:51]} 12. Qb3 {[%clk 00:59:09]}
{[%emt 00:06:13]} Be6 {[%clk 01:15:45]} {[%emt 00:01:14]} 13. Bxe6 {[%clk
00:58:45]} {[%emt 00:00:54]} Rxe6 {[%clk 01:16:10]} {[%emt 00:00:04]} 14. Qc2
{[%clk 00:50:51]} {[%emt 00:08:25]} Re8 {[%clk 01:12:59]} {[%emt 00:03:41]} 15.
Nb3 {[%clk 00:48:17]} {[%emt 00:03:05]} d5 {[%emt 00:03:38]} 16. Be3 {[%clk
00:46:05]} Qd6 {[%clk 01:08:10]} {[%emt 00:04:51]} 17. h3 {[%clk 00:45:48]}
{[%emt 00:00:47]} Nd7 {[%clk 01:07:09]} {[%emt 00:01:31]} 18. Bd2 {[%clk
00:37:27]} {[%emt 00:08:51]} Nf8 {[%clk 01:04:04]} {[%emt 00:03:35]} 19. Nc5
{[%clk 00:32:02]} {[%emt 00:05:56]} Ne6 {[%clk 01:03:27]} {[%emt 00:01:06]} 20.
Nxe6 {[%clk 00:32:26]} {[%emt 00:00:06]} Qxe6 {[%clk 01:02:22]} {[%emt
00:01:35]} 21. Reb1 {[%clk 00:32:46]} {[%emt 00:00:10]} Red8 {[%clk 00:56:23]}
{[%emt 00:06:29]} 22. Be3 {[%clk 00:31:08]} {[%emt 00:02:07]} Ne7 {[%clk
00:41:11]} {[%emt 00:15:43]} 23. b5 {[%clk 00:28:16]} {[%emt 00:03:22]} axb5
{[%clk 00:40:54]} {[%emt 00:00:47]} 24. Rxb5 {[%clk 00:28:41]} {[%emt
00:00:05]} dxe4 {[%clk 00:39:41]} {[%emt 00:01:43]} 25. dxe4 {[%clk 00:29:07]}
{[%emt 00:00:05]} Nc8 {[%clk 00:40:03]} {[%emt 00:00:07]} 26. c4 {[%clk
00:22:37]} {[%emt 00:07:01]} Qa6 {[%clk 00:33:20]} {[%emt 00:07:12]} 27. Ra4
{[%clk 00:12:11]} {[%emt 00:10:56]} Nd6 {[%clk 00:30:12]} {[%emt 00:03:38]} 28.
Rc5 {[%clk 00:12:02]} {[%emt 00:00:40]} Rbc8 {[%clk 00:28:08]} {[%emt
00:02:33]} 29. Nxe5 {[%clk 00:11:20]} {[%emt 00:01:12]} Re8 {[%clk 00:28:13]}
{[%emt 00:00:25]} 30. f4 {[%clk 00:09:49]} {[%emt 00:02:02]} Re6 {[%clk
00:12:58]} {[%emt 00:15:44]} 31. Rd5 {[%clk 00:08:29]} {[%emt 00:01:51]} Rce8
{[%clk 00:13:14]} {[%emt 00:00:13]} 32. c5 {[%clk 00:06:52]} {[%emt 00:02:08]}
Nb5 {[%clk 00:13:36]} {[%emt 00:00:07]} 33. Qd3 {[%clk 00:06:11]} {[%emt
00:01:11]} g5 {[%clk 00:12:36]} {[%emt 00:01:30]} 34. c6 {[%clk 00:03:27]}
{[%emt 00:03:15]} bxc6 {[%clk 00:10:13]} {[%emt 00:02:53]} 35. Nxc6 {[%clk
00:03:07]} {[%emt 00:00:50]} Qxc6 {[%clk 00:09:51]} {[%emt 00:00:52]} 36. Qxb5
{[%clk 00:03:09]} {[%emt 00:00:27]} Qxb5 {[%clk 00:05:35]} {[%emt 00:04:46]} 37.
Rxb5 {[%clk 00:03:38]} {[%emt 00:00:02]} Rxe4 {[%clk 00:05:59]} {[%emt
00:00:06]} 38. Rxe4 {[%clk 00:04:04]} {[%emt 00:00:04]} Rxe4 {[%clk 00:06:26]}
{[%emt 00:00:03]} 39. Bd2 {[%clk 00:00:41]} {[%emt 00:03:52]} Rd4 {[%clk
00:03:44]} {[%emt 00:03:13]} 40. Be3 {[%clk 00:00:36]} {[%emt 00:00:35]} Ra4
{[%clk 00:01:20]} {[%emt 00:02:54]} 41. fxg5 {[%clk 00:46:48]} {[%emt
00:04:18]} Bc3 {[%clk 00:50:03]} {[%emt 00:01:46]} 42. gxh6 {[%clk 00:36:46]}
{[%emt 00:10:33]} Rxa5 {[%clk 00:50:03]} {[%emt 00:00:30]} 43. Rb8+ {[%clk
00:33:08]} {[%emt 00:04:08]} Kh7 {[%clk 00:50:00]} {[%emt 00:00:32]} 44. Kf2
{[%clk 00:28:36]} {[%emt 00:05:02]} Ra2+ {[%clk 00:45:28]} {[%emt 00:05:02]} 45.
Kf3 {[%clk 00:29:02]} {[%emt 00:00:04]} Bd2 {[%clk 00:45:52]} {[%emt 00:00:06]}
46. Rb3 {[%clk 00:19:03]} {[%emt 00:10:30]} Bxe3 {[%clk 00:43:25]} {[%emt
00:02:57]} 47. Rxe3 {[%clk 00:19:31]} {[%emt 00:00:02]} Ra6 {[%clk 00:42:26]}
{[%emt 00:01:29]} 48. g4 {[%clk 00:15:49]} {[%emt 00:04:12]} Kxh6 {[%clk
00:40:30]} {[%emt 00:02:24]} 49. Rc3 {[%clk 00:15:11]} {[%emt 00:01:09]} f5
{[%clk 00:38:56]} {[%emt 00:02:04]} 50. gxf5 {[%clk 00:15:37]} {[%emt
00:00:04]} Kg5 {[%clk 00:39:22]} {[%emt 00:00:04]} 51. Rc5 {[%clk 00:15:30]}
{[%emt 00:00:38]} Ra4 {[%clk 00:39:36]} {[%emt 00:00:15]} 1/2-1/2

[Event "FIDE Grand Swiss 2023"]
[Site "Villa Marina, Douglas, Isle of Man, Isle Of Man"]
[Date "2023.10.26"]
[Round "2.21"]
[White "Murzin, Volodar"]
[Black "Praggnanandhaa, R"]
[Result "1/2-1/2"]
[TimeControl "40/90 + 30 + 30s/move"]
[WhiteFideId "44155573"]
[BlackFideId "25059530"]
[WhiteElo "2633"]
[BlackElo "2738"]

1. d4 {[%clk 01:40:57]} {[%emt 00:00:03]} Nf6 {[%clk 01:40:07]} {[%emt
00:00:53]} 2. c4 {[%clk 01:41:13]} {[%emt 00:00:14]} e6 {[%clk 01:40:29]}
{[%emt 00:00:07]} 3. Nf3 {[%clk 01:41:35]} {[%emt 00:00:09]} d5 {[%clk
01:40:41]} {[%emt 00:00:17]} 4. Nc3 {[%clk 01:41:40]} {[%emt 00:00:25]} c6
{[%clk 01:40:29]} {[%emt 00:00:43]} 5. e3 {[%clk 01:41:55]} {[%emt 00:00:15]}
Nbd7 {[%clk 01:38:57]} {[%emt 00:02:02]} 6. Qc2 {[%clk 01:41:23]} {[%emt
00:01:02]} Bd6 {[%clk 01:38:59]} {[%emt 00:00:28]} 7. Bd3 {[%clk 01:41:37]}
{[%emt 00:00:16]} dxc4 {[%clk 01:38:23]} {[%emt 00:01:06]} 8. Bxc4 {[%clk
01:42:02]} {[%emt 00:00:05]} b5 {[%clk 01:38:49]} {[%emt 00:00:04]} 9. Bd3
{[%clk 01:42:26]} {[%emt 00:00:06]} Bb7 {[%clk 01:38:38]} {[%emt 00:00:41]} 10.
O-O {[%clk 01:41:42]} {[%emt 00:01:13]} a6 {[%clk 01:37:16]} {[%emt 00:01:53]}
11. a4 {[%clk 01:34:09]} {[%emt 00:08:03]} O-O {[%clk 01:20:02]} {[%emt
00:17:43]} 12. Ng5 {[%clk 01:11:40]} {[%emt 00:23:00]} Bxh2+ {[%clk 01:05:51]}
{[%emt 00:14:40]} 13. Kxh2 {[%clk 00:45:43]} {[%emt 00:26:27]} Ng4+ {[%clk
01:05:50]} {[%emt 00:00:31]} 14. Kg1 {[%clk 00:42:24]} {[%emt 00:03:49]} Qxg5
{[%clk 01:05:40]} {[%emt 00:00:40]} 15. f3 {[%clk 00:41:52]} {[%emt 00:01:03]}
Ngf6 {[%clk 01:05:05]} {[%emt 00:01:05]} 16. e4 {[%clk 00:28:03]} {[%emt
00:14:20]} Qh4 {[%clk 01:05:14]} {[%emt 00:00:20]} 17. Be3 {[%clk 00:23:19]}
{[%emt 00:05:14]} e5 {[%clk 01:02:23]} {[%emt 00:03:20]} 18. Ne2 {[%clk
00:16:16]} {[%emt 00:07:33]} Nh5 {[%clk 00:56:16]} {[%emt 00:06:37]} 19. axb5
{[%clk 00:07:43]} {[%emt 00:09:05]} axb5 {[%clk 00:55:35]} {[%emt 00:01:10]} 20.
Qc3 {[%clk 00:04:39]} {[%emt 00:03:34]} exd4 {[%clk 00:43:08]} {[%emt
00:12:56]} 21. Bxd4 {[%clk 00:05:08]} {[%emt 00:00:02]} Rfe8 {[%clk 00:42:34]}
{[%emt 00:01:03]} 22. b4 {[%clk 00:04:49]} {[%emt 00:00:50]} Nf8 {[%clk
00:40:53]} {[%emt 00:02:11]} 23. Rxa8 {[%clk 00:05:01]} {[%emt 00:00:18]} Rxa8
{[%clk 00:38:43]} {[%emt 00:02:40]} 24. Ra1 {[%clk 00:05:30]} {[%emt 00:00:01]}
Rd8 {[%clk 00:36:47]} {[%emt 00:02:26]} 25. Bc2 {[%clk 00:04:37]} {[%emt
00:01:23]} Ng6 {[%clk 00:29:26]} {[%emt 00:07:52]} 26. Bb6 {[%clk 00:05:01]}
{[%emt 00:00:05]} Rd7 {[%clk 00:26:46]} {[%emt 00:03:10]} 27. Rd1 {[%clk
00:05:29]} {[%emt 00:00:02]} Rxd1+ {[%clk 00:21:28]} {[%emt 00:05:48]} 28. Bxd1
{[%clk 00:05:58]} {[%emt 00:00:01]} h6 {[%clk 00:21:15]} {[%emt 00:00:43]} 29.
Bb3 {[%clk 00:05:45]} {[%emt 00:00:42]} Nhf4 {[%clk 00:19:22]} {[%emt
00:02:24]} 30. Nxf4 {[%clk 00:06:06]} {[%emt 00:00:09]} Nxf4 {[%clk 00:19:26]}
{[%emt 00:00:26]} 31. Qd2 {[%clk 00:05:47]} {[%emt 00:00:49]} Bc8 {[%clk
00:15:23]} {[%emt 00:04:33]} 32. Bc7 {[%clk 00:03:44]} {[%emt 00:02:33]} Be6
{[%clk 00:13:32]} {[%emt 00:02:21]} 33. Bxf4 {[%clk 00:02:08]} {[%emt
00:02:06]} Bxb3 {[%clk 00:13:45]} {[%emt 00:00:16]} 34. Be3 {[%clk 00:02:08]}
{[%emt 00:00:31]} Bc4 {[%clk 00:10:39]} {[%emt 00:03:36]} 35. Bf2 {[%clk
00:02:34]} {[%emt 00:00:04]} Qf6 {[%clk 00:10:17]} {[%emt 00:00:51]} 36. Bd4
{[%clk 00:02:55]} {[%emt 00:00:10]} Qd6 {[%clk 00:10:03]} {[%emt 00:00:44]} 37.
Bc3 {[%clk 00:03:05]} {[%emt 00:00:21]} Qe7 {[%clk 00:09:06]} {[%emt 00:01:27]}
38. Qd4 {[%clk 00:03:16]} {[%emt 00:00:20]} f6 {[%clk 00:09:20]} {[%emt
00:00:16]} 39. Qb6 {[%clk 00:01:56]} {[%emt 00:01:49]} Qe8 {[%clk 00:07:55]}
{[%emt 00:01:55]} 40. Qc7 {[%clk 00:01:51]} {[%emt 00:00:36]} Be6 {[%clk
00:08:17]} {[%emt 00:00:08]} 41. Bd4 {[%clk 00:01:45]} {[%emt 00:00:35]} Bd7
{[%clk 00:08:06]} {[%emt 00:00:40]} 42. Qd6 {[%clk 00:46:45]} {[%emt 00:05:30]}
Qe6 {[%clk 00:53:22]} {[%emt 00:05:15]} 43. Qxe6+ {[%clk 00:47:02]} {[%emt
00:00:13]} Bxe6 {[%clk 00:53:48]} {[%emt 00:00:05]} 1/2-1/2